fUST/lending_fUST_20240721
["ID","MTS","AMOUNT","RATE_DAILY","PERIOD"]
[332763757,1721507469717,-653.11,0.00015068,2]
[332763758,1721507469727,-500.0,0.00015068,2]
[332763759,1721507469737,-922.66,0.00015068,2]
[332763760,1721507469747,-500.0,0.00015068,2]
[332763761,1721507469757,-9525.09,0.00015068,2]
[332763762,1721507469767,-1636.19,0.00015068,2]
[332763763,1721507469777,-2521.08,0.00015068,2]
[332763764,1721507469787,-668.41,0.00015068,2]
[332763765,1721507469797,-5492.89,0.00015068,2]
[332763766,1721507469807,-2936.55,0.00015068,2]
[332763767,1721507469816,-1876.24,0.00015068,2]
[332763768,1721507469826,-688.02,0.00015068,2]
[332763769,1721507469836,-1164.01,0.00015068,2]
[332763770,1721507469846,-500.0,0.00015068,2]
[332763771,1721507469856,-500.0,0.00015068,2]
[332763772,1721507469866,-500.0,0.00015068,2]
[332763773,1721507469876,-597.65,0.00015068,2]
[332763774,1721507469886,-500.0,0.00015068,2]
[332763775,1721507469896,-615.32,0.00015068,2]
[332763776,1721507469906,-680.97,0.00015068,2]
[332763777,1721507469916,-5204.55,0.00015068,2]
[332763778,1721507469926,-534.36,0.00015068,2]
[332763779,1721507469936,-500.0,0.00015068,2]
[332763780,1721507469946,-223.085694,0.00015068,2]
[332763781,1721507469956,-18390.94,0.00015068,2]
[332763782,1721507469967,-223.085694,0.00015068,2]
[332763783,1721507469977,-500.0,0.00015068,2]
[332763784,1721507469987,-500.0,0.00015068,2]
[332763785,1721507469996,-3826.08,0.00015068,2]
[332763786,1721507470005,-993.33,0.00015068,2]
[332763787,1721507470015,-694.69,0.00015068,2]
[332763788,1721507470026,-500.0,0.00015068,2]
[332763789,1721507470036,-500.0,0.00015068,2]
[332763790,1721507470046,-2030.73,0.00015068,2]
[332763791,1721507470055,-650.96,0.00015068,2]
[332763792,1721507470065,-2230.68,0.00015068,2]
[332763793,1721507470075,-1066.37,0.00015068,2]
[332763794,1721507470084,-3050.09,0.00015068,2]
[332763795,1721507470093,-500.0,0.00015068,2]
[332763796,1721507470103,-500.0,0.00015068,2]
[332763797,1721507470113,-500.0,0.00015068,2]
[332763798,1721507470124,-11096.32,0.00015068,2]
[332763799,1721507470134,-732.38,0.00015068,2]
[332763800,1721507470144,-4979.9,0.00015068,2]
[332763801,1721507470153,-606.15,0.00015068,2]
[332763802,1721507470163,-500.0,0.00015068,2]
[332763803,1721507470174,-1373.89,0.00015068,2]
[332763804,1721507470183,-2679.12,0.00015068,2]
[332763805,1721507470194,-4593.9,0.00015068,2]
[332763806,1721507470204,-3152.44,0.00015068,2]
[332763807,1721507470214,-2055.25,0.00015068,2]
[332763808,1721507470224,-500.0,0.00015068,2]
[332763809,1721507470234,-1077.09,0.00015068,2]
[332763810,1721507470243,-615.57,0.00015068,2]
[332763811,1721507470253,-500.0,0.00015068,2]
[332763812,1721507470263,-653.33,0.00015068,2]
[332763813,1721507470273,-500.0,0.00015068,2]
[332763814,1721507470282,-1961.3,0.00015068,2]
[332763815,1721507470293,-1149.23,0.00015068,2]
[332763816,1721507470303,-523.71,0.00015068,2]
[332763817,1721507470314,-588.32,0.00015068,2]
[332763818,1721507470324,-1717.99,0.00015068,2]
[332763819,1721507470335,-611.84,0.00015068,2]
[332763820,1721507470345,-1361.98,0.00015068,2]
[332763821,1721507470354,-500.0,0.00015068,2]
[332763822,1721507470364,-2600.56,0.00015068,2]
[332763823,1721507470375,-3138.15,0.00015068,2]
[332763824,1721507470386,-1486.97,0.00015068,2]
[332763825,1721507470398,-1456.198574,0.00015068,2]
[332763826,1721507470410,-2758.06,0.00015068,2]
[332763827,1721507470421,-500.0,0.00015068,2]
[332763828,1721507470431,-500.0,0.00015068,2]
[332763829,1721507470441,-1456.198574,0.00015068,2]
[332763830,1721507470452,-1314.88,0.00015068,2]
[332763831,1721507470464,-1235.35,0.00015068,2]
[332763832,1721507470474,-458.85904965,0.00015068,2]
[332763833,1721507470484,-944.37,0.00015068,2]
[332763834,1721507470495,-1593.99,0.00015068,2]
[332763835,1721507470510,-500.0,0.00015068,2]
[332763836,1721507470522,-1289.95,0.00015068,2]
[332763837,1721507470533,-1524.61,0.00015068,2]
[332763838,1721507470543,-950.65,0.00015068,2]
[332763839,1721507470554,-982.46,0.00015068,2]
[332763840,1721507470564,-8831.38060745,0.00015068,2]
[332763842,1721507515649,341.48992898,9.999e-05,2]
[332763843,1721507525837,412.07328423,9.999e-05,2]
[332763844,1721507547307,1023.68388853,9.999e-05,2]
[332763846,1721507593610,3000.0,0.000225,30]
[332763848,1721507650414,998.66812844,9.999e-05,2]
[332763895,1721508632047,-203.38897688,0.00010955,2]
[332763897,1721508632057,-250.0,0.00011615,2]
[332763899,1721508632067,-3132.5354852,0.00011731,2]
[332763901,1721508632077,-542.1301282,0.00011756,2]
[332763904,1721508632087,-187.5,0.00012266,2]
[332763906,1721508632097,-187.5,0.00012479,2]
[332763908,1721508632106,-187.5,0.00012692,2]
[332763910,1721508632116,-187.5,0.00012905,2]
[332763912,1721508632126,-153.0,0.00013288,2]
[332763914,1721508632135,-306.0,0.00013425,2]
[332763916,1721508632145,-300.0,0.00013597,2]
[332763918,1721508632154,-160.0,0.00013597,2]
[332763920,1721508632164,-3000.98990653,0.00013598,2]
[332763922,1721508632180,-2930.10953894,0.00013598,2]
[332763925,1721508632190,-1896.13994257,0.00013598,2]
[332763927,1721508632200,-2000.0,0.00013598,2]
[332763928,1721508632209,-131161.11596857,0.00013668,2]
[332764092,1721508638057,-4646.51215197,0.00013668,2]
[332764099,1721508638113,-217557.25488746,0.00013668,2]
[332764101,1721508638123,-163.22735768,0.00013698,2]
[332764103,1721508638135,-300.0,0.00013698,2]
[332764105,1721508638145,-157.25097584,0.00013698,2]
[332764107,1721508638155,-250.59703979,0.00013698,2]
[332764109,1721508638165,-512.27304389,0.00013698,2]
[332764111,1721508638174,-500.0,0.00013698,2]
[332764113,1721508638183,-500.0,0.00013698,2]
[332764115,1721508638193,-500.0,0.00013698,2]
[332764117,1721508638202,-500.0,0.00013698,2]
[332764119,1721508638211,-500.0,0.00013698,2]
[332764121,1721508638220,-500.0,0.00013698,2]
[332764123,1721508638229,-2066.42,0.00013698,2]
[332764125,1721508638238,-500.0,0.00013698,2]
[332764127,1721508638248,-500.0,0.00013698,2]
[332764129,1721508638257,-607.91,0.00013698,2]
[332764130,1721508638266,-500.0,0.00013698,2]
[332764132,1721508638275,-500.0,0.00013698,2]
[332764134,1721508638284,-553.59452076,0.00013698,2]
[332764136,1721508638294,-500.0,0.00013698,2]
[332764138,1721508638304,-1282.57,0.00013698,2]
[332764139,1721508638313,-626.84,0.00013698,2]
[332764141,1721508638322,-500.0,0.00013698,2]
[332764142,1721508638332,-500.0,0.00013698,2]
[332764144,1721508638342,-500.0,0.00013698,2]
[332764146,1721508638351,-500.0,0.00013698,2]
[332764147,1721508638361,-500.0,0.00013698,2]
[332764148,1721508638370,-500.0,0.00013698,2]
[332764149,1721508638379,-500.0,0.00013698,2]
[332764150,1721508638388,-574.73,0.00013698,2]
[332764151,1721508638397,-500.0,0.00013698,2]
[332764152,1721508638406,-561.72,0.00013698,2]
[332764153,1721508638416,-289.40371987,0.00013698,2]
[332764154,1721508638425,-500.0,0.00013698,2]
[332764155,1721508638435,-500.0,0.00013698,2]
[332764156,1721508638444,-500.0,0.00013698,2]
[332764157,1721508638453,-500.0,0.00013698,2]
[332764159,1721508638462,-500.0,0.00013698,2]
[332764161,1721508638472,-500.0,0.00013698,2]
[332764163,1721508638481,-500.0,0.00013698,2]
[332764164,1721508638490,-500.0,0.00013698,2]
[332764166,1721508638499,-500.0,0.00013698,2]
[332764168,1721508638509,-500.0,0.00013698,2]
[332764170,1721508638519,-500.0,0.00013698,2]
[332764171,1721508638528,-500.0,0.00013698,2]
[332764173,1721508638537,-525.96507878,0.00013698,2]
[332764175,1721508638547,-1064.01,0.00013698,2]
[332764176,1721508638557,-500.0,0.00013698,2]
[332764177,1721508638566,-500.0,0.00013698,2]
[332764178,1721508638575,-638.32,0.00013698,2]
[332764179,1721508638585,-2000.0,0.00013698,2]
[332764180,1721508638594,-502.09315046,0.00013698,2]
[332764181,1721508638603,-500.0,0.00013698,2]
[332764183,1721508638612,-640.31,0.00013698,2]
[332764185,1721508638622,-500.0,0.00013698,2]
[332764186,1721508638631,-500.0,0.00013698,2]
[332764188,1721508638641,-500.0,0.00013698,2]
[332764190,1721508638651,-500.0,0.00013698,2]
[332764192,1721508638660,-500.0,0.00013698,2]
[332764194,1721508638669,-500.0,0.00013698,2]
[332764195,1721508638678,-500.0,0.00013698,2]
[332764196,1721508638688,-500.0,0.00013698,2]
[332764197,1721508638698,-254.88943529,0.00013698,2]
[332764198,1721508638710,-500.0,0.00013698,2]
[332764199,1721508638720,-500.0,0.00013698,2]
[332764200,1721508638729,-500.0,0.00013698,2]
[332764201,1721508638738,-502.76716104,0.00013698,2]
[332764203,1721508638749,-500.0,0.00013698,2]
[332764204,1721508638759,-801.47,0.00013698,2]
[332764206,1721508638768,-500.0,0.00013698,2]
[332764208,1721508638779,-500.0,0.00013698,2]
[332764209,1721508638791,-560.73301691,0.00013698,2]
[332764210,1721508638802,-500.0,0.00013698,2]
[332764211,1721508638813,-500.0,0.00013698,2]
[332764212,1721508638823,-383.27512815,0.00013698,2]
[332764213,1721508638833,-500.0,0.00013698,2]
[332764214,1721508638842,-500.0,0.00013698,2]
[332764215,1721508638852,-500.0,0.00013698,2]
[332764216,1721508638861,-501.28590095,0.00013698,2]
[332764217,1721508638872,-500.0,0.00013698,2]
[332764218,1721508638882,-500.0,0.00013698,2]
[332764219,1721508638894,-500.0,0.00013698,2]
[332764220,1721508638905,-827.55,0.00013698,2]
[332764221,1721508638915,-500.0,0.00013698,2]
[332764222,1721508638925,-500.0,0.00013698,2]
[332764223,1721508638935,-709.52,0.00013698,2]
[332764224,1721508638944,-502.03808671,0.00013698,2]
[332764225,1721508638955,-500.0,0.00013698,2]
[332764226,1721508638964,-901.43,0.00013698,2]
[332764227,1721508638974,-757.46,0.00013698,2]
[332764228,1721508638985,-500.0,0.00013698,2]
[332764229,1721508638997,-2427.53,0.00013698,2]
[332764230,1721508639007,-500.0,0.00013698,2]
[332764231,1721508639017,-500.0,0.00013698,2]
[332764232,1721508639026,-500.0,0.00013698,2]
[332764233,1721508639036,-500.0,0.00013698,2]
[332764234,1721508639045,-500.0,0.00013698,2]
[332764235,1721508639054,-500.0,0.00013698,2]
[332764236,1721508639063,-500.0,0.00013698,2]
[332764237,1721508639073,-501.43999562,0.00013698,2]
[332764238,1721508639082,-527.43,0.00013698,2]
[332764239,1721508639091,-500.0,0.00013698,2]
[332764240,1721508639101,-500.0,0.00013698,2]
[332764241,1721508639110,-500.0,0.00013698,2]
[332764242,1721508639120,-500.0,0.00013698,2]
[332764243,1721508639129,-500.0,0.00013698,2]
[332764244,1721508639139,-500.0,0.00013698,2]
[332764245,1721508639148,-815.02,0.00013698,2]
[332764246,1721508639157,-556.66494551,0.00013698,2]
[332764247,1721508639167,-500.0,0.00013698,2]
[332764248,1721508639176,-1495.68,0.00013698,2]
[332764249,1721508639185,-500.0,0.00013698,2]
[332764250,1721508639195,-500.0,0.00013698,2]
[332764251,1721508639205,-500.0,0.00013698,2]
[332764252,1721508639215,-500.0,0.00013698,2]
[332764253,1721508639226,-500.0,0.00013698,2]
[332764254,1721508639236,-500.4941119,0.00013698,2]
[332764255,1721508639246,-500.0,0.00013698,2]
[332764256,1721508639255,-500.0,0.00013698,2]
[332764257,1721508639264,-500.0,0.00013698,2]
[332764258,1721508639273,-500.0,0.00013698,2]
[332764259,1721508639283,-500.0,0.00013698,2]
[332764260,1721508639292,-500.0,0.00013698,2]
[332764261,1721508639301,-500.0,0.00013698,2]
[332764262,1721508639311,-500.0,0.00013698,2]
[332764263,1721508639320,-604.37638102,0.00013698,2]
[332764264,1721508639329,-500.0,0.00013698,2]
[332764265,1721508639339,-510.37104917,0.00013698,2]
[332764266,1721508639348,-500.0,0.00013698,2]
[332764267,1721508639358,-500.0,0.00013698,2]
[332764268,1721508639367,-568.59,0.00013698,2]
[332764269,1721508639377,-2686.8,0.00013698,2]
[332764270,1721508639386,-500.0,0.00013698,2]
[332764271,1721508639395,-500.0,0.00013698,2]
[332764272,1721508639405,-2224.67,0.00013698,2]
[332764273,1721508639414,-500.0,0.00013698,2]
[332764274,1721508639423,-500.0,0.00013698,2]
[332764275,1721508639432,-500.0,0.00013698,2]
[332764276,1721508639442,-500.0,0.00013698,2]
[332764277,1721508639451,-500.0,0.00013698,2]
[332764278,1721508639461,-500.0,0.00013698,2]
[332764279,1721508639470,-500.0,0.00013698,2]
[332764280,1721508639479,-500.0,0.00013698,2]
[332764281,1721508639488,-213.5647246,0.00013698,2]
[332764282,1721508639497,-3019.91,0.00013698,2]
[332764283,1721508639506,-500.0,0.00013698,2]
[332764284,1721508639516,-1114.92,0.00013698,2]
[332764285,1721508639526,-805.55,0.00013698,2]
[332764287,1721508639535,-505.11920375,0.00013698,2]
[332764288,1721508639545,-503.42,0.00013698,2]
[332764290,1721508639554,-500.0,0.00013698,2]
[332764292,1721508639563,-500.0,0.00013698,2]
[332764293,1721508639574,-500.0,0.00013698,2]
[332764294,1721508639583,-500.0,0.00013698,2]
[332764295,1721508639592,-503.14598103,0.00013698,2]
[332764296,1721508639602,-581.03636157,0.00013698,2]
[332764297,1721508639611,-500.0,0.00013698,2]
[332764298,1721508639620,-348.77204299,0.00013698,2]
[332764299,1721508639629,-500.0,0.00013698,2]
[332764301,1721508639638,-500.0,0.00013698,2]
[332764302,1721508639648,-500.0,0.00013698,2]
[332764304,1721508639657,-500.0,0.00013698,2]
[332764306,1721508639666,-500.0,0.00013698,2]
[332764307,1721508639675,-500.0,0.00013698,2]
[332764308,1721508639685,-500.0,0.00013698,2]
[332764314,1721508639911,-500.0,0.00013698,2]
[332764315,1721508639922,-500.0,0.00013698,2]
[332764317,1721508639932,-500.0,0.00013698,2]
[332764319,1721508639942,-597.32646143,0.00013698,2]
[332764320,1721508639951,-500.0,0.00013698,2]
[332764321,1721508639961,-500.0,0.00013698,2]
[332764322,1721508639971,-359.41986597,0.00013698,2]
[332764323,1721508639981,-500.0,0.00013698,2]
[332764324,1721508639990,-500.0,0.00013698,2]
[332764325,1721508640000,-500.0,0.00013698,2]
[332764327,1721508640010,-500.0,0.00013698,2]
[332764329,1721508640019,-500.0,0.00013698,2]
[332764330,1721508640029,-500.0,0.00013698,2]
[332764332,1721508640040,-500.0,0.00013698,2]
[332764333,1721508640050,-532.3051961,0.00013698,2]
[332764334,1721508640060,-500.0,0.00013698,2]
[332764336,1721508640070,-500.0,0.00013698,2]
[332764338,1721508640080,-500.0,0.00013698,2]
[332764339,1721508640089,-500.0,0.00013698,2]
[332764340,1721508640099,-500.0,0.00013698,2]
[332764341,1721508640108,-500.0,0.00013698,2]
[332764342,1721508640121,-500.0,0.00013698,2]
[332764343,1721508640131,-926.66,0.00013698,2]
[332764344,1721508640142,-500.0,0.00013698,2]
[332764345,1721508640151,-500.0,0.00013698,2]
[332764346,1721508640162,-500.0,0.00013698,2]
[332764347,1721508640171,-500.0,0.00013698,2]
[332764348,1721508640180,-539.10157171,0.00013698,2]
[332764349,1721508640193,-500.0,0.00013698,2]
[332764350,1721508640203,-500.0,0.00013698,2]
[332764351,1721508640212,-387.79553029,0.00013698,2]
[332764352,1721508640222,-500.0,0.00013698,2]
[332764353,1721508640231,-510.80465162,0.00013698,2]
[332764354,1721508640241,-500.0,0.00013698,2]
[332764355,1721508640251,-500.0,0.00013698,2]
[332764356,1721508640260,-500.0,0.00013698,2]
[332764357,1721508640270,-750.01,0.00013698,2]
[332764358,1721508640279,-504.29336531,0.00013698,2]
[332764359,1721508640289,-749.11,0.00013698,2]
[332764360,1721508640300,-977.73,0.00013698,2]
[332764361,1721508640310,-500.0,0.00013698,2]
[332764362,1721508640320,-500.0,0.00013698,2]
[332764363,1721508640329,-500.0,0.00013698,2]
[332764365,1721508640339,-1075.22,0.00013698,2]
[332764367,1721508640349,-500.0,0.00013698,2]
[332764369,1721508640358,-500.0,0.00013698,2]
[332764371,1721508640368,-502.24550809,0.00013698,2]
[332764372,1721508640377,-500.0,0.00013698,2]
[332764373,1721508640387,-507.51827141,0.00013698,2]
[332764374,1721508640397,-625.8,0.00013698,2]
[332764375,1721508640407,-499.97734961,0.00013698,2]
[332764376,1721508640417,-503.70346198,0.00013698,2]
[332764377,1721508640427,-505.68851242,0.00013698,2]
[332764379,1721508640437,-500.0,0.00013698,2]
[332764381,1721508640447,-512.53010385,0.00013698,2]
[332764382,1721508640456,-500.0,0.00013698,2]
[332764383,1721508640467,-500.0,0.00013698,2]
[332764384,1721508640476,-500.0,0.00013698,2]
[332764385,1721508640486,-500.0,0.00013698,2]
[332764386,1721508640495,-500.0,0.00013698,2]
[332764387,1721508640505,-500.0,0.00013698,2]
[332764388,1721508640515,-500.0,0.00013698,2]
[332764389,1721508640524,-500.0,0.00013698,2]
[332764390,1721508640534,-500.0,0.00013698,2]
[332764391,1721508640544,-592.03,0.00013698,2]
[332764392,1721508640554,-500.0,0.00013698,2]
[332764393,1721508640563,-500.0,0.00013698,2]
[332764394,1721508640573,-398.38256931,0.00013698,2]
[332764395,1721508640582,-500.0,0.00013698,2]
[332764396,1721508640592,-500.0,0.00013698,2]
[332764397,1721508640601,-3956.68,0.00013698,2]
[332764398,1721508640611,-500.0,0.00013698,2]
[332764399,1721508640621,-691.92,0.00013698,2]
[332764400,1721508640630,-500.0,0.00013698,2]
[332764401,1721508640639,-545.09,0.00013698,2]
[332764402,1721508640649,-1408.97,0.00013698,2]
[332764403,1721508640659,-1976.48,0.00013698,2]
[332764404,1721508640668,-671.35,0.00013698,2]
[332764405,1721508640679,-500.0,0.00013698,2]
[332764406,1721508640689,-500.0,0.00013698,2]
[332764407,1721508640700,-500.0,0.00013698,2]
[332764408,1721508640711,-501.25801672,0.00013698,2]
[332764409,1721508640721,-500.0,0.00013698,2]
[332764410,1721508640731,-500.0,0.00013698,2]
[332764411,1721508640740,-500.0,0.00013698,2]
[332764412,1721508640750,-500.0,0.00013698,2]
[332764413,1721508640760,-500.0,0.00013698,2]
[332764414,1721508640771,-500.0,0.00013698,2]
[332764415,1721508640783,-500.0,0.00013698,2]
[332764416,1721508640796,-500.0,0.00013698,2]
[332764417,1721508640807,-500.0,0.00013698,2]
[332764418,1721508640816,-500.0,0.00013698,2]
[332764419,1721508640826,-500.0,0.00013698,2]
[332764420,1721508640835,-500.0,0.00013698,2]
[332764421,1721508640847,-500.0,0.00013698,2]
[332764422,1721508640859,-500.0,0.00013698,2]
[332764423,1721508640869,-355.02897317,0.00013698,2]
[332764424,1721508640879,-1775.97,0.00013698,2]
[332764425,1721508640890,-500.0,0.00013698,2]
[332764426,1721508640899,-569.81,0.00013698,2]
[332764427,1721508640909,-500.0,0.00013698,2]
[332764428,1721508640919,-500.0,0.00013698,2]
[332764429,1721508640929,-592.17800272,0.00013698,2]
[332764430,1721508640940,-500.0,0.00013698,2]
[332764431,1721508640951,-512.3,0.00013698,2]
[332764432,1721508640961,-582.28461375,0.00013698,2]
[332764433,1721508640971,-515.12988625,0.00013698,2]
[332764434,1721508640981,-1870.22,0.00013698,2]
[332764435,1721508640991,-564.04,0.00013698,2]
[332764436,1721508641002,-500.0,0.00013698,2]
[332764437,1721508641014,-1574.83,0.00013698,2]
[332764438,1721508641024,-500.0,0.00013698,2]
[332764439,1721508641034,-500.0,0.00013698,2]
[332764440,1721508641046,-532.72,0.00013698,2]
[332764441,1721508641059,-767.04,0.00013698,2]
[332764442,1721508641070,-500.0,0.00013698,2]
[332764443,1721508641082,-500.0,0.00013698,2]
[332764444,1721508641092,-501.71905467,0.00013698,2]
[332764445,1721508641102,-500.0,0.00013698,2]
[332764446,1721508641113,-504.38908166,0.00013698,2]
[332764447,1721508641124,-824.82,0.00013698,2]
[332764448,1721508641134,-501.22838301,0.00013698,2]
[332764449,1721508641145,-500.0,0.00013698,2]
[332764450,1721508641154,-545.09,0.00013698,2]
[332764451,1721508641164,-502.8377914,0.00013698,2]
[332764452,1721508641175,-500.0,0.00013698,2]
[332764453,1721508641186,-630.69,0.00013698,2]
[332764454,1721508641196,-503.50495794,0.00013698,2]
[332764455,1721508641206,-500.0,0.00013698,2]
[332764456,1721508641215,-500.0,0.00013698,2]
[332764457,1721508641225,-811.3,0.00013698,2]
[332764458,1721508641235,-1259.4,0.00013698,2]
[332764459,1721508641247,-500.0,0.00013698,2]
[332764460,1721508641258,-859.66,0.00013698,2]
[332764461,1721508641268,-880.13,0.00013698,2]
[332764462,1721508641277,-606.47,0.00013698,2]
[332764463,1721508641286,-500.0,0.00013698,2]
[332764464,1721508641296,-2551.02,0.00013698,2]
[332764465,1721508641306,-1271.9,0.00013698,2]
[332764466,1721508641316,-500.0,0.00013698,2]
[332764467,1721508641326,-500.0,0.00013698,2]
[332764468,1721508641336,-1694.34,0.00013698,2]
[332764469,1721508641345,-500.0,0.00013698,2]
[332764470,1721508641355,-500.0,0.00013698,2]
[332764471,1721508641365,-501.14776022,0.00013698,2]
[332764472,1721508641374,-500.0,0.00013698,2]
[332764473,1721508641383,-517.43758687,0.00013698,2]
[332764474,1721508641392,-500.0,0.00013698,2]
[332764475,1721508641401,-1673.13,0.00013698,2]
[332764476,1721508641411,-500.0,0.00013698,2]
[332764477,1721508641420,-500.0,0.00013698,2]
[332764478,1721508641429,-500.0,0.00013698,2]
[332764479,1721508641438,-1967.34,0.00013698,2]
[332764480,1721508641448,-500.0,0.00013698,2]
[332764481,1721508641457,-500.0,0.00013698,2]
[332764482,1721508641466,-500.0,0.00013698,2]
[332764483,1721508641476,-500.0,0.00013698,2]
[332764484,1721508641486,-500.0,0.00013698,2]
[332764485,1721508641495,-503.04863189,0.00013698,2]
[332764486,1721508641505,-500.0,0.00013698,2]
[332764487,1721508641514,-506.666072,0.00013698,2]
[332764488,1721508641523,-500.0,0.00013698,2]
[332764489,1721508641533,-500.0,0.00013698,2]
[332764490,1721508641546,-500.0,0.00013698,2]
[332764491,1721508641555,-500.0,0.00013698,2]
[332764492,1721508641566,-500.0,0.00013698,2]
[332764493,1721508641575,-500.0,0.00013698,2]
[332764494,1721508641585,-500.0,0.00013698,2]
[332764495,1721508641595,-500.0,0.00013698,2]
[332764496,1721508641607,-500.0,0.00013698,2]
[332764497,1721508641616,-500.0,0.00013698,2]
[332764498,1721508641625,-500.0,0.00013698,2]
[332764499,1721508641634,-273.70156827,0.00013698,2]
[332764500,1721508641644,-1296.63,0.00013698,2]
[332764501,1721508641653,-856.09,0.00013698,2]
[332764502,1721508641663,-1379.95,0.00013698,2]
[332764503,1721508641673,-1680.79,0.00013698,2]
[332764504,1721508641684,-539.29,0.00013698,2]
[332764505,1721508641694,-500.0,0.00013698,2]
[332764506,1721508641708,-500.0,0.00013698,2]
[332764507,1721508641718,-502.06952761,0.00013698,2]
[332764508,1721508641727,-534.53,0.00013698,2]
[332764509,1721508641736,-500.0,0.00013698,2]
[332764510,1721508641746,-500.0,0.00013698,2]
[332764511,1721508641758,-505.93712617,0.00013698,2]
[332764512,1721508641769,-500.0,0.00013698,2]
[332764513,1721508641781,-500.0,0.00013698,2]
[332764514,1721508641790,-535.33170948,0.00013698,2]
[332764515,1721508641802,-465.25885834,0.00013698,2]
[332764516,1721508641814,-2006.64,0.00013698,2]
[332764517,1721508641824,-518.04290527,0.00013698,2]
[332764518,1721508641835,-500.0,0.00013698,2]
[332764519,1721508641846,-509.288735,0.00013698,2]
[332764520,1721508641856,-712.22,0.00013698,2]
[332764521,1721508641867,-500.90625531,0.00013698,2]
[332764522,1721508641876,-500.0,0.00013698,2]
[332764523,1721508641886,-1929.81,0.00013698,2]
[332764524,1721508641895,-739.61,0.00013698,2]
[332764525,1721508641905,-831.82,0.00013698,2]
[332764526,1721508641914,-663.89,0.00013698,2]
[332764527,1721508641923,-778.32,0.00013698,2]
[332764528,1721508641932,-500.0,0.00013698,2]
[332764529,1721508641943,-500.0,0.00013698,2]
[332764530,1721508641953,-500.0,0.00013698,2]
[332764531,1721508641962,-500.0,0.00013698,2]
[332764532,1721508641973,-500.0,0.00013698,2]
[332764533,1721508641984,-500.0,0.00013698,2]
[332764534,1721508641994,-524.86017018,0.00013698,2]
[332764535,1721508642003,-1019.27,0.00013698,2]
[332764536,1721508642014,-500.0,0.00013698,2]
[332764537,1721508642025,-500.0,0.00013698,2]
[332764538,1721508642034,-500.3265989,0.00013698,2]
[332764539,1721508642046,-882.84,0.00013698,2]
[332764540,1721508642055,-500.0,0.00013698,2]
[332764541,1721508642066,-958.78,0.00013698,2]
[332764542,1721508642075,-508.09294628,0.00013698,2]
[332764543,1721508642085,-500.0,0.00013698,2]
[332764544,1721508642093,-500.0,0.00013698,2]
[332764545,1721508642103,-500.0,0.00013698,2]
[332764546,1721508642113,-500.0,0.00013698,2]
[332764547,1721508642122,-500.0,0.00013698,2]
[332764548,1721508642131,-500.0,0.00013698,2]
[332764549,1721508642140,-500.0,0.00013698,2]
[332764550,1721508642150,-560.9,0.00013698,2]
[332764551,1721508642160,-514.86963877,0.00013698,2]
[332764552,1721508642169,-500.0,0.00013698,2]
[332764553,1721508642180,-500.0,0.00013698,2]
[332764554,1721508642191,-500.0,0.00013698,2]